{"text_format":"1","workbook":"xlsx","n_sheets":5,"sheets":["Basic Dataset","LEFT and LEN Function","Replace Function","Flash Fill","VBA Code"],"not_rendered":{"charts":0,"images":0,"macros":1,"external_links":0,"defined_names":0,"comments":0,"pivot_tables":0},"unopened":[],"bounds":{"document_bytes":16777216,"sheet_cells":100000,"rows_first":2000,"rows_last":500,"rows_between":2000,"halvings":0,"cell_chars":16384,"cell_head_chars":4096},"cells_cut":0,"cells_raw":0,"read":"whole","date_system":"1900"}

{"sheet":"Basic Dataset","index":0,"n_rows":14,"n_cols":5,"rows_kept":14,"cut":false,"hidden":false,"merged":[[1,1,1,4]]}
[]
[null,"Employee Info. List"]
[]
[null,"Employee ID","Department","Full Name","Given Name"]
[null,105,"IT","Jason Roy"]
[null,106,"IT","Brandon Roy"]
[null,107,"Finance","Bryan Roy"]
[null,108,"Finance","Derek Roy"]
[null,109,"Accounting","Eric Roy "]
[null,110,"Accounting","Mrinmoy Roy"]
[null,111,"Engineerning","Fabien Roy"]
[null,112,"Engineerning","James Roy"]
[null,113,"Finance","Jeffrey Roy"]
[null,114,"Accounting","Leo Roy"]

{"sheet":"LEFT and LEN Function","index":1,"n_rows":14,"n_cols":11,"rows_kept":14,"cut":false,"hidden":false,"merged":[[1,1,1,4],[1,7,1,10]]}
[]
[null,"Usage of LEFT and LEN Function",null,null,null,null,null,"Practice Here"]
[]
[null,"Employee ID","Department","Full Name","Given Name",null,null,"Employee ID","Department","Full Name","Given Name"]
[null,105,"IT","Jason Roy",{"$f":"LEFT(D5,LEN(D5)-3)","v":"Jason "},null,null,105,"IT","Jason Roy"]
[null,106,"IT","Brandon Roy",{"$f":"LEFT(D6,LEN(D6)-3)","v":"Brandon "},null,null,106,"IT","Brandon Roy"]
[null,107,"Finance","Bryan Roy","Bryan ",null,null,107,"Finance","Bryan Roy"]
[null,108,"Finance","Derek Roy","Derek ",null,null,108,"Finance","Derek Roy"]
[null,109,"Accounting","Eric Roy ","Eric R",null,null,109,"Accounting","Eric Roy "]
[null,110,"Accounting","Mrinmoy Roy","Mrinmoy ",null,null,110,"Accounting","Mrinmoy Roy"]
[null,111,"Engineerning","Fabien Roy","Fabien ",null,null,111,"Engineerning","Fabien Roy"]
[null,112,"Engineerning","James Roy","James ",null,null,112,"Engineerning","James Roy"]
[null,113,"Finance","Jeffrey Roy","Jeffrey ",null,null,113,"Finance","Jeffrey Roy"]
[null,114,"Accounting","Leo Roy","Leo ",null,null,114,"Accounting","Leo Roy"]

{"sheet":"Replace Function","index":2,"n_rows":14,"n_cols":11,"rows_kept":14,"cut":false,"hidden":false,"merged":[[1,1,1,4],[1,7,1,10]]}
[]
[null,"Usage of the Replace Function",null,null,null,null,null,"Practice Here"]
[]
[null,"Employee ID","Department","Full Name","Given Name",null,null,"Employee ID","Department","Full Name","Given Name"]
[null,105,"IT","Jason Roy",{"$f":"REPLACE(D5, FIND(\" \",D5)+1, 3, \"\")","v":"Jason "},null,null,105,"IT","Jason Roy"]
[null,106,"IT","Brandon Roy",{"$f":"REPLACE(D6, FIND(\" \",D6)+1, 3, \"\")","v":"Brandon "},null,null,106,"IT","Brandon Roy"]
[null,107,"Finance","Bryan Roy","Bryan ",null,null,107,"Finance","Bryan Roy"]
[null,108,"Finance","Derek Roy","Derek ",null,null,108,"Finance","Derek Roy"]
[null,109,"Accounting","Eric Roy ","Eric  ",null,null,109,"Accounting","Eric Roy "]
[null,110,"Accounting","Mrinmoy Roy","Mrinmoy ",null,null,110,"Accounting","Mrinmoy Roy"]
[null,111,"Engineerning","Fabien Roy","Fabien ",null,null,111,"Engineerning","Fabien Roy"]
[null,112,"Engineerning","James Roy","James ",null,null,112,"Engineerning","James Roy"]
[null,113,"Finance","Jeffrey Roy","Jeffrey ",null,null,113,"Finance","Jeffrey Roy"]
[null,114,"Accounting","Leo Roy","Leo ",null,null,114,"Accounting","Leo Roy"]

{"sheet":"Flash Fill","index":3,"n_rows":14,"n_cols":11,"rows_kept":14,"cut":false,"hidden":false,"merged":[[1,1,1,4],[1,7,1,10]]}
[]
[null,"Usage of the Flash Fill",null,null,null,null,null,"Practice Here"]
[]
[null,"Employee ID","Department","Full Name","Given Name",null,null,"Employee ID","Department","Full Name","Given Name"]
[null,105,"IT","Jason Roy","Jason",null,null,105,"IT","Jason Roy"]
[null,106,"IT","Brandon Roy","Brandon",null,null,106,"IT","Brandon Roy"]
[null,107,"Finance","Bryan Roy","Bryan",null,null,107,"Finance","Bryan Roy"]
[null,108,"Finance","Derek Roy","Derek",null,null,108,"Finance","Derek Roy"]
[null,109,"Accounting","Eric Roy ","Eric",null,null,109,"Accounting","Eric Roy "]
[null,110,"Accounting","Mrinmoy Roy","Mrinmoy",null,null,110,"Accounting","Mrinmoy Roy"]
[null,111,"Engineerning","Fabien Roy","Fabien",null,null,111,"Engineerning","Fabien Roy"]
[null,112,"Engineerning","James Roy","James",null,null,112,"Engineerning","James Roy"]
[null,113,"Finance","Jeffrey Roy","Jeffrey",null,null,113,"Finance","Jeffrey Roy"]
[null,114,"Accounting","Leo Roy","Leo",null,null,114,"Accounting","Leo Roy"]

{"sheet":"VBA Code","index":4,"n_rows":14,"n_cols":11,"rows_kept":14,"cut":false,"hidden":false,"merged":[[1,1,1,4],[1,7,1,10]]}
[]
[null,"Usage of the VBA Code",null,null,null,null,null,"Practice Here"]
[]
[null,"Employee ID","Department","Full Name","Given Name",null,null,"Employee ID","Department","Full Name","Given Name"]
[null,105,"IT","Jason Roy",{"$f":"RemoveLast3Characters(D5,3)","v":"Jason "},null,null,105,"IT","Jason Roy"]
[null,106,"IT","Brandon Roy",{"$f":"RemoveLast3Characters(D6,3)","v":"Brandon "},null,null,106,"IT","Brandon Roy"]
[null,107,"Finance","Bryan Roy","Bryan ",null,null,107,"Finance","Bryan Roy"]
[null,108,"Finance","Derek Roy","Derek ",null,null,108,"Finance","Derek Roy"]
[null,109,"Accounting","Eric Roy ","Eric R",null,null,109,"Accounting","Eric Roy "]
[null,110,"Accounting","Mrinmoy Roy","Mrinmoy ",null,null,110,"Accounting","Mrinmoy Roy"]
[null,111,"Engineerning","Fabien Roy","Fabien ",null,null,111,"Engineerning","Fabien Roy"]
[null,112,"Engineerning","James Roy","James ",null,null,112,"Engineerning","James Roy"]
[null,113,"Finance","Jeffrey Roy","Jeffrey ",null,null,113,"Finance","Jeffrey Roy"]
[null,114,"Accounting","Leo Roy","Leo ",null,null,114,"Accounting","Leo Roy"]